fUST/lending_fUST_20240824
["ID","MTS","AMOUNT","RATE_DAILY","PERIOD"]
[335717990,1724461839182,-500.0,0.00013698,2]
[335717991,1724461839192,-585.24,0.00013698,2]
[335717992,1724461839201,-500.0,0.00013698,2]
[335717993,1724461839211,-500.0,0.00013698,2]
[335717994,1724461839220,-881.02,0.00013698,2]
[335717995,1724461839230,-500.0,0.00013698,2]
[335717996,1724461839239,-881.02,0.00013698,2]
[335717997,1724461839249,-881.02,0.00013698,2]
[335717998,1724461839258,-881.02,0.00013698,2]
[335717999,1724461839268,-881.02,0.00013698,2]
[335718000,1724461839277,-881.02,0.00013698,2]
[335718001,1724461839287,-881.02,0.00013698,2]
[335718002,1724461839297,-881.02,0.00013698,2]
[335718003,1724461839306,-881.02,0.00013698,2]
[335718004,1724461839316,-500.0,0.00013698,2]
[335718005,1724461839325,-881.02,0.00013698,2]
[335718006,1724461839335,-881.02,0.00013698,2]
[335718007,1724461839344,-1253.45,0.00013698,2]
[335718008,1724461839354,-881.02,0.00013698,2]
[335718009,1724461839363,-881.02,0.00013698,2]
[335718011,1724461839373,-881.02,0.00013698,2]
[335718013,1724461839382,-881.02,0.00013698,2]
[335718015,1724461839392,-881.02,0.00013698,2]
[335718016,1724461839402,-881.02,0.00013698,2]
[335718018,1724461839411,-881.02,0.00013698,2]
[335718020,1724461839421,-500.0,0.00013698,2]
[335718022,1724461839431,-500.0,0.00013698,2]
[335718023,1724461839440,-265.89318957,0.00013698,2]
[335718025,1724461839450,-500.0,0.00013698,2]
[335718027,1724461839462,-500.0,0.00013698,2]
[335718029,1724461839471,-500.0,0.00013698,2]
[335718031,1724461839481,-500.0,0.00013698,2]
[335718033,1724461839490,-500.0,0.00013698,2]
[335718034,1724461839500,-500.0,0.00013698,2]
[335718036,1724461839509,-500.0,0.00013698,2]
[335718037,1724461839518,-500.0,0.00013698,2]
[335718038,1724461839528,-500.0,0.00013698,2]
[335718039,1724461839537,-3301.0,0.00013698,2]
[335718040,1724461839547,-500.0,0.00013698,2]
[335718042,1724461839557,-500.0,0.00013698,2]
[335718043,1724461839567,-500.0,0.00013698,2]
[335718044,1724461839577,-500.0,0.00013698,2]
[335718045,1724461839587,-742.24,0.00013698,2]
[335718046,1724461839597,-2999.47,0.00013698,2]
[335718047,1724461839606,-500.0,0.00013698,2]
[335718048,1724461839616,-500.0,0.00013698,2]
[335718049,1724461839626,-500.0,0.00013698,2]
[335718050,1724461839635,-500.0,0.00013698,2]
[335718051,1724461839645,-500.0,0.00013698,2]
[335718052,1724461839655,-500.0,0.00013698,2]
[335718053,1724461839665,-500.0,0.00013698,2]
[335718054,1724461839675,-500.0,0.00013698,2]
[335718055,1724461839685,-500.0,0.00013698,2]
[335718056,1724461839695,-500.0,0.00013698,2]
[335718057,1724461839705,-500.0,0.00013698,2]
[335718058,1724461839714,-500.0,0.00013698,2]
[335718059,1724461839724,-500.0,0.00013698,2]
[335718060,1724461839734,-500.0,0.00013698,2]
[335718061,1724461839744,-655.23,0.00013698,2]
[335718062,1724461839754,-500.0,0.00013698,2]
[335718063,1724461839763,-585.23,0.00013698,2]
[335718064,1724461839773,-501.15990719,0.00013698,2]
[335718065,1724461839784,-500.0,0.00013698,2]
[335718066,1724461839793,-500.0,0.00013698,2]
[335718067,1724461839803,-2138.76,0.00013698,2]
[335718068,1724461839813,-892.53,0.00013698,2]
[335718069,1724461839822,-2897.25,0.00013698,2]
[335718070,1724461839832,-500.0,0.00013698,2]
[335718071,1724461839841,-500.0,0.00013698,2]
[335718072,1724461839851,-500.0,0.00013698,2]
[335718073,1724461839863,-500.0,0.00013698,2]
[335718074,1724461839873,-1194.05,0.00013698,2]
[335718075,1724461839883,-553.29,0.00013698,2]
[335718076,1724461839892,-500.0,0.00013698,2]
[335718077,1724461839902,-500.0,0.00013698,2]
[335718078,1724461839913,-500.0,0.00013698,2]
[335718079,1724461839922,-694.17,0.00013698,2]
[335718080,1724461839932,-637.77,0.00013698,2]
[335718081,1724461839942,-500.0,0.00013698,2]
[335718082,1724461839952,-150.0,0.00013698,2]
[335718083,1724461839961,-500.0,0.00013698,2]
[335718084,1724461839971,-500.0,0.00013698,2]
[335718085,1724461839981,-500.0,0.00013698,2]
[335718086,1724461839991,-500.0,0.00013698,2]
[335718087,1724461840001,-500.0,0.00013698,2]
[335718088,1724461840011,-626.90033113,0.00013698,2]
[335718089,1724461840021,-500.0,0.00013698,2]
[335718090,1724461840033,-854.11,0.00013698,2]
[335718091,1724461840043,-500.0,0.00013698,2]
[335718092,1724461840052,-500.0,0.00013698,2]
[335718093,1724461840063,-500.0,0.00013698,2]
[335718094,1724461840073,-761.87,0.00013698,2]
[335718095,1724461840083,-500.0,0.00013698,2]
[335718096,1724461840095,-500.0,0.00013698,2]
[335718097,1724461840105,-906.0,0.00013698,2]
[335718098,1724461840115,-500.0,0.00013698,2]
[335718099,1724461840125,-500.0,0.00013698,2]
[335718100,1724461840135,-500.0,0.00013698,2]
[335718101,1724461840145,-500.0,0.00013698,2]
[335718102,1724461840155,-500.0,0.00013698,2]
[335718103,1724461840164,-500.0,0.00013698,2]
[335718104,1724461840173,-500.0,0.00013698,2]
[335718105,1724461840183,-500.0,0.00013698,2]
[335718106,1724461840193,-500.0,0.00013698,2]
[335718107,1724461840203,-500.0,0.00013698,2]
[335718108,1724461840214,-667.24,0.00013698,2]
[335718109,1724461840224,-1009.05,0.00013698,2]
[335718110,1724461840235,-500.0,0.00013698,2]
[335718111,1724461840245,-536.12,0.00013698,2]
[335718112,1724461840254,-500.0,0.00013698,2]
[335718113,1724461840264,-824.63,0.00013698,2]
[335718114,1724461840273,-500.0,0.00013698,2]
[335718115,1724461840283,-501.18652113,0.00013698,2]
[335718116,1724461840292,-661.62,0.00013698,2]
[335718117,1724461840301,-1003.72,0.00013698,2]
[335718118,1724461840310,-500.0,0.00013698,2]
[335718120,1724461840320,-500.0,0.00013698,2]
[335718122,1724461840329,-509.48617632,0.00013698,2]
[335718124,1724461840339,-825.82,0.00013698,2]
[335718126,1724461840348,-537.34,0.00013698,2]
[335718128,1724461840359,-500.0,0.00013698,2]
[335718130,1724461840369,-2602.93,0.00013698,2]
[335718132,1724461840379,-500.0,0.00013698,2]
[335718135,1724461840392,-500.0,0.00013698,2]
[335718137,1724461840405,-500.0,0.00013698,2]
[335718161,1724461840618,-500.0,0.00013698,2]
[335718163,1724461840628,-500.0,0.00013698,2]
[335718165,1724461840637,-696.41,0.00013698,2]
[335718167,1724461840648,-426.71454106,0.00013698,2]
[335718169,1724461840657,-500.0,0.00013698,2]
[335718171,1724461840666,-500.0,0.00013698,2]
[335718173,1724461840676,-500.0,0.00013698,2]
[335718175,1724461840685,-500.0,0.00013698,2]
[335718177,1724461840695,-500.0,0.00013698,2]
[335718179,1724461840704,-500.0,0.00013698,2]
[335718181,1724461840714,-500.0,0.00013698,2]
[335718183,1724461840724,-500.0,0.00013698,2]
[335718185,1724461840733,-1395.99,0.00013698,2]
[335718187,1724461840743,-530.35,0.00013698,2]
[335718189,1724461840753,-500.0,0.00013698,2]
[335718191,1724461840762,-500.0,0.00013698,2]
[335718193,1724461840772,-964.46,0.00013698,2]
[335718195,1724461840782,-450.55309569,0.00013698,2]
[335718197,1724461840792,-674.4,0.00013698,2]
[335718199,1724461840801,-500.0,0.00013698,2]
[335718201,1724461840811,-500.0,0.00013698,2]
[335718203,1724461840821,-500.0,0.00013698,2]
[335718205,1724461840831,-807.92,0.00013698,2]
[335718207,1724461840840,-500.0,0.00013698,2]
[335718209,1724461840850,-500.0,0.00013698,2]
[335718211,1724461840860,-854.51,0.00013698,2]
[335718213,1724461840873,-500.0,0.00013698,2]
[335718215,1724461840883,-500.0,0.00013698,2]
[335718218,1724461840894,-599.79,0.00013698,2]
[335718220,1724461840904,-500.0,0.00013698,2]
[335718221,1724461840915,-500.0,0.00013698,2]
[335718223,1724461840925,-500.0,0.00013698,2]
[335718225,1724461840934,-2234.04,0.00013698,2]
[335718227,1724461840946,-500.0,0.00013698,2]
[335718230,1724461840956,-675.88,0.00013698,2]
[335718232,1724461840966,-500.0,0.00013698,2]
[335718234,1724461840976,-500.0,0.00013698,2]
[335718236,1724461840986,-567.5,0.00013698,2]
[335718238,1724461840995,-582.2,0.00013698,2]
[335718240,1724461841006,-500.0,0.00013698,2]
[335718242,1724461841016,-500.0,0.00013698,2]
[335718244,1724461841025,-500.0,0.00013698,2]
[335718246,1724461841037,-1723.45,0.00013698,2]
[335718248,1724461841046,-500.0,0.00013698,2]
[335718250,1724461841056,-5310.44,0.00013698,2]
[335718252,1724461841066,-644.58,0.00013698,2]
[335718254,1724461841075,-500.0,0.00013698,2]
[335718256,1724461841086,-790.69,0.00013698,2]
[335718258,1724461841096,-500.0,0.00013698,2]
[335718260,1724461841106,-500.0,0.00013698,2]
[335718262,1724461841115,-500.0,0.00013698,2]
[335718264,1724461841125,-500.0,0.00013698,2]
[335718266,1724461841135,-500.0,0.00013698,2]
[335718269,1724461841146,-500.0,0.00013698,2]
[335718270,1724461841155,-500.0,0.00013698,2]
[335718272,1724461841164,-500.0,0.00013698,2]
[335718274,1724461841174,-500.0,0.00013698,2]
[335718276,1724461841183,-500.0,0.00013698,2]
[335718278,1724461841193,-816.72,0.00013698,2]
[335718280,1724461841203,-500.0,0.00013698,2]
[335718283,1724461841212,-500.0,0.00013698,2]
[335718285,1724461841222,-652.17,0.00013698,2]
[335718287,1724461841232,-500.0,0.00013698,2]
[335718289,1724461841241,-500.0,0.00013698,2]
[335718291,1724461841250,-500.0,0.00013698,2]
[335718292,1724461841260,-500.0,0.00013698,2]
[335718294,1724461841269,-500.0,0.00013698,2]
[335718297,1724461841279,-500.0,0.00013698,2]
[335718299,1724461841289,-500.0,0.00013698,2]
[335718301,1724461841299,-500.0,0.00013698,2]
[335718303,1724461841308,-500.0,0.00013698,2]
[335718305,1724461841318,-2114.67,0.00013698,2]
[335718306,1724461841327,-500.0,0.00013698,2]
[335718308,1724461841337,-500.0,0.00013698,2]
[335718310,1724461841347,-500.0,0.00013698,2]
[335718312,1724461841356,-500.0,0.00013698,2]
[335718314,1724461841365,-457.26,0.00013698,2]
[335718316,1724461841374,-562.37,0.00013698,2]
[335718318,1724461841384,-500.0,0.00013698,2]
[335718320,1724461841393,-500.0,0.00013698,2]
[335718322,1724461841403,-238.68484419,0.00013698,2]
[335718324,1724461841412,-743.8,0.00013698,2]
[335718326,1724461841422,-576.29,0.00013698,2]
[335718328,1724461841431,-760.12,0.00013698,2]
[335718330,1724461841440,-1405.11,0.00013698,2]
[335718332,1724461841450,-500.0,0.00013698,2]
[335718334,1724461841460,-542.19,0.00013698,2]
[335718336,1724461841469,-430.23889698,0.00013698,2]
[335718338,1724461841478,-4468.09,0.00013698,2]
[335718340,1724461841488,-500.0,0.00013698,2]
[335718342,1724461841498,-500.0,0.00013698,2]
[335718344,1724461841507,-500.0,0.00013698,2]
[335718346,1724461841516,-1565.56,0.00013698,2]
[335718348,1724461841525,-1060.51,0.00013698,2]
[335718349,1724461841535,-1422.74,0.00013698,2]
[335718351,1724461841544,-805.73,0.00013698,2]
[335718353,1724461841554,-500.0,0.00013698,2]
[335718355,1724461841563,-500.0,0.00013698,2]
[335718357,1724461841573,-580.87,0.00013698,2]
[335718359,1724461841582,-500.0,0.00013698,2]
[335718361,1724461841592,-500.0,0.00013698,2]
[335718363,1724461841602,-500.0,0.00013698,2]
[335718364,1724461841612,-500.0,0.00013698,2]
[335718366,1724461841622,-861.7,0.00013698,2]
[335718368,1724461841632,-500.0,0.00013698,2]
[335718369,1724461841642,-818.83,0.00013698,2]
[335718370,1724461841663,-500.0,0.00013698,2]
[335718371,1724461841672,-500.0,0.00013698,2]
[335718372,1724461841682,-500.0,0.00013698,2]
[335718373,1724461841692,-2735.98,0.00013698,2]
[335718374,1724461841701,-853.13,0.00013698,2]
[335718375,1724461841710,-500.0,0.00013698,2]
[335718377,1724461841721,-500.0,0.00013698,2]
[335718378,1724461841731,-1841.63,0.00013698,2]
[335718379,1724461841741,-472.73768463,0.00013698,2]
[335718380,1724461841751,-500.0,0.00013698,2]
[335718381,1724461841763,-2174.33,0.00013698,2]
[335718382,1724461841772,-500.0,0.00013698,2]
[335718383,1724461841782,-500.0,0.00013698,2]
[335718384,1724461841792,-1222.8,0.00013698,2]
[335718385,1724461841801,-866.02,0.00013698,2]
[335718386,1724461841811,-1624.71,0.00013698,2]
[335718387,1724461841821,-503.039779,0.00013698,2]
[335718388,1724461841831,-500.0,0.00013698,2]
[335718389,1724461841841,-500.0,0.00013698,2]
[335718390,1724461841853,-500.0,0.00013698,2]
[335718391,1724461841867,-500.0,0.00013698,2]
[335718392,1724461841877,-978.57,0.00013698,2]
[335718393,1724461841886,-544.70045129,0.00013698,2]
[335718395,1724461841901,-260.03201082,0.00013698,2]
[335718397,1724461841911,-900.06,0.00013698,2]
[335718399,1724461841920,-500.0,0.00013698,2]
[335718401,1724461841929,-925.91,0.00013698,2]
[335718403,1724461841939,-500.0,0.00013698,2]
[335718405,1724461841948,-857.11,0.00013698,2]
[335718407,1724461841958,-576.57,0.00013698,2]
[335718410,1724461841967,-868.33,0.00013698,2]
[335718412,1724461841979,-3316.24,0.00013698,2]
[335718414,1724461841989,-500.0,0.00013698,2]
[335718416,1724461842000,-526.31,0.00013698,2]
[335718418,1724461842010,-606.94,0.00013698,2]
[335718420,1724461842019,-571.59322596,0.00013698,2]
[335718422,1724461842030,-980.97,0.00013698,2]
[335718424,1724461842039,-1212.84,0.00013698,2]
[335718426,1724461842050,-500.0,0.00013698,2]
[335718428,1724461842059,-500.0,0.00013698,2]
[335718430,1724461842069,-960.23,0.00013698,2]
[335718433,1724461842080,-500.0,0.00013698,2]
[335718435,1724461842090,-500.0,0.00013698,2]
[335718437,1724461842101,-1035.64,0.00013698,2]
[335718439,1724461842111,-500.0,0.00013698,2]
[335718441,1724461842121,-763.28,0.00013698,2]
[335718443,1724461842130,-500.0,0.00013698,2]
[335718445,1724461842140,-500.0,0.00013698,2]
[335718447,1724461842157,-500.0,0.00013698,2]
[335718449,1724461842166,-605.14,0.00013698,2]
[335718451,1724461842175,-913.89,0.00013698,2]
[335718453,1724461842184,-1150.77,0.00013698,2]
[335718455,1724461842193,-4407.09,0.00013698,2]
[335718456,1724461842202,-500.0,0.00013698,2]
[335718458,1724461842211,-500.0,0.00013698,2]
[335718460,1724461842221,-1198.72,0.00013698,2]
[335718462,1724461842230,-632.17,0.00013698,2]
[335718464,1724461842239,-1630.07,0.00013698,2]
[335718466,1724461842248,-788.47,0.00013698,2]
[335718468,1724461842257,-1248.42,0.00013698,2]
[335718470,1724461842266,-500.0,0.00013698,2]
[335718472,1724461842277,-500.0,0.00013698,2]
[335718474,1724461842286,-1411.85,0.00013698,2]
[335718476,1724461842295,-547.11247919,0.00013698,2]
[335718478,1724461842307,-500.0,0.00013698,2]
[335718480,1724461842318,-500.0,0.00013698,2]
[335718482,1724461842328,-500.0,0.00013698,2]
[335718484,1724461842340,-500.0,0.00013698,2]
[335718486,1724461842350,-590.22036589,0.00013698,2]
[335718489,1724461842359,-616.88290999,0.00013698,2]
[335718491,1724461842369,-500.0,0.00013698,2]
[335718492,1724461842379,-500.0,0.00013698,2]
[335718494,1724461842388,-632.77,0.00013698,2]
[335718496,1724461842399,-500.0,0.00013698,2]
[335718498,1724461842409,-565.54,0.00013698,2]
[335718501,1724461842420,-292.39527355,0.00013698,2]
[335718502,1724461842430,-1498.06,0.00013698,2]
[335718504,1724461842440,-500.0,0.00013698,2]
[335718506,1724461842449,-500.0,0.00013698,2]
[335718508,1724461842458,-500.0,0.00013698,2]
[335718510,1724461842468,-590.1,0.00013698,2]
[335718512,1724461842477,-522.57,0.00013698,2]
[335718514,1724461842488,-826.23,0.00013698,2]
[335718516,1724461842497,-500.0,0.00013698,2]
[335718518,1724461842507,-500.0,0.00013698,2]
[335718521,1724461842517,-500.0,0.00013698,2]
[335718525,1724461842526,-621.45,0.00013698,2]
[335718528,1724461842535,-500.0,0.00013698,2]
[335718531,1724461842545,-500.0,0.00013698,2]
[335718533,1724461842555,-500.0,0.00013698,2]
[335718535,1724461842565,-500.0,0.00013698,2]
[335718537,1724461842575,-500.0,0.00013698,2]
[335718539,1724461842584,-1099.26,0.00013698,2]
[335718542,1724461842593,-500.0,0.00013698,2]
[335718545,1724461842603,-500.0,0.00013698,2]
[335718548,1724461842613,-561.73,0.00013698,2]
[335718550,1724461842622,-500.0,0.00013698,2]
[335718552,1724461842631,-500.0,0.00013698,2]
[335718554,1724461842641,-500.0,0.00013698,2]
[335718556,1724461842652,-500.0,0.00013698,2]
[335718558,1724461842661,-500.0,0.00013698,2]
[335718560,1724461842671,-706.93,0.00013698,2]
[335718562,1724461842680,-500.0,0.00013698,2]
[335718564,1724461842689,-500.0,0.00013698,2]
[335718566,1724461842699,-500.0,0.00013698,2]
[335718568,1724461842709,-500.0,0.00013698,2]
[335718570,1724461842719,-639.18,0.00013698,2]
[335718573,1724461842729,-500.0,0.00013698,2]
[335718575,1724461842739,-500.0,0.00013698,2]
[335718577,1724461842749,-590.73,0.00013698,2]
[335718579,1724461842761,-500.0,0.00013698,2]
[335718581,1724461842771,-500.0,0.00013698,2]
[335718583,1724461842779,-500.0,0.00013698,2]
[335718585,1724461842791,-848.96,0.00013698,2]
[335718587,1724461842802,-987.24,0.00013698,2]
[335718590,1724461842814,-500.0,0.00013698,2]
[335718592,1724461842825,-1383.21,0.00013698,2]
[335718594,1724461842835,-968.54,0.00013698,2]
[335718596,1724461842846,-688.27,0.00013698,2]
[335718598,1724461842858,-500.0,0.00013698,2]
[335718600,1724461842871,-500.0,0.00013698,2]
[335718603,1724461842882,-6123.58,0.00013698,2]
[335718605,1724461842894,-500.0,0.00013698,2]
[335718607,1724461842903,-500.0,0.00013698,2]
[335718608,1724461842911,-500.0,0.00013698,2]
[335718610,1724461842920,-500.0,0.00013698,2]
[335718612,1724461842930,-500.0,0.00013698,2]
[335718614,1724461842939,-500.0,0.00013698,2]
[335718616,1724461842949,-500.0,0.00013698,2]
[335718618,1724461842958,-500.0,0.00013698,2]
[335718620,1724461842967,-500.0,0.00013698,2]
[335718622,1724461842977,-1409.87,0.00013698,2]
[335718624,1724461842986,-500.0,0.00013698,2]
[335718626,1724461842995,-500.0,0.00013698,2]
[335718628,1724461843005,-747.27,0.00013698,2]
[335718630,1724461843014,-500.0,0.00013698,2]
[335718632,1724461843023,-500.0,0.00013698,2]
[335718634,1724461843034,-500.0,0.00013698,2]
[335718636,1724461843043,-500.0,0.00013698,2]
[335718638,1724461843052,-500.0,0.00013698,2]
[335718640,1724461843062,-500.0,0.00013698,2]
[335718642,1724461843072,-751.58,0.00013698,2]
[335718644,1724461843081,-500.0,0.00013698,2]
[335718646,1724461843091,-500.0,0.00013698,2]
[335718648,1724461843100,-500.0,0.00013698,2]
[335718650,1724461843109,-500.0,0.00013698,2]
[335718652,1724461843119,-500.0,0.00013698,2]
[335718653,1724461843128,-500.0,0.00013698,2]
[335718654,1724461843138,-500.0,0.00013698,2]
[335718656,1724461843147,-3022.0,0.00013698,2]
[335718658,1724461843156,-734.68,0.00013698,2]
[335718659,1724461843165,-3530.47,0.00013698,2]
[335718660,1724461843175,-508.83738647,0.00013698,2]
[335718661,1724461843185,-500.0,0.00013698,2]
[335718662,1724461843194,-500.0,0.00013698,2]
[335718663,1724461843203,-1200.04,0.00013698,2]
[335718664,1724461843213,-500.0,0.00013698,2]
[335718665,1724461843222,-500.0,0.00013698,2]
[335718666,1724461843232,-1565.22,0.00013698,2]
[335718667,1724461843241,-500.0,0.00013698,2]
[335718669,1724461843251,-500.0,0.00013698,2]
[335718671,1724461843261,-505.03,0.00013698,2]
[335718673,1724461843270,-755.44,0.00013698,2]
[335718675,1724461843279,-500.0,0.00013698,2]
[335718677,1724461843289,-500.0,0.00013698,2]
[335718679,1724461843298,-1103.37,0.00013698,2]
[335718681,1724461843307,-501.05200541,0.00013698,2]
[335718683,1724461843316,-14063.46,0.00013698,2]
[335718685,1724461843326,-500.0,0.00013698,2]
[335718687,1724461843335,-3092.73,0.00013698,2]
[335718689,1724461843345,-687.73,0.00013698,2]
[335718691,1724461843354,-500.0,0.00013698,2]
[335718693,1724461843364,-547.75,0.00013698,2]
[335718695,1724461843373,-152.74317081,0.00013698,2]
[335718697,1724461843383,-500.0,0.00013698,2]
[335718699,1724461843392,-664.29,0.00013698,2]
[335718701,1724461843402,-2081.92,0.00013698,2]
[335718703,1724461843411,-500.0,0.00013698,2]
[335718705,1724461843420,-697.9,0.00013698,2]
[335718707,1724461843429,-966.19,0.00013698,2]
[335718709,1724461843439,-500.0,0.00013698,2]
[335718711,1724461843448,-500.0,0.00013698,2]
[335718712,1724461843457,-315.12849873,0.00013698,2]
[335718715,1724461843467,-614.66,0.00013698,2]
[335718717,1724461843475,-500.0,0.00013698,2]
[335718719,1724461843485,-500.0,0.00013698,2]
[335718721,1724461843494,-834.28,0.00013698,2]
[335718723,1724461843503,-500.0,0.00013698,2]
[335718725,1724461843512,-2218.9,0.00013698,2]
[335718727,1724461843522,-623.99,0.00013698,2]
[335718729,1724461843533,-500.0,0.00013698,2]
[335718731,1724461843543,-387.78347306,0.00013698,2]
[335718733,1724461843551,-500.0,0.00013698,2]
[335718735,1724461843561,-658.62,0.00013698,2]
[335718737,1724461843570,-500.0,0.00013698,2]
[335718739,1724461843579,-500.0,0.00013698,2]
[335718741,1724461843588,-1767.06,0.00013698,2]
[335718743,1724461843598,-500.0,0.00013698,2]
[335718745,1724461843607,-1969.84,0.00013698,2]
[335718746,1724461843615,-500.0,0.00013698,2]
[335718748,1724461843625,-1003.5,0.00013698,2]
[335718750,1724461843634,-500.0,0.00013698,2]
[335718752,1724461843643,-500.0,0.00013698,2]
[335718754,1724461843652,-500.0,0.00013698,2]
[335718756,1724461843662,-1062.65,0.00013698,2]
[335718758,1724461843671,-500.0,0.00013698,2]
[335718760,1724461843680,-500.0,0.00013698,2]
[335718762,1724461843690,-500.0,0.00013698,2]
[335718764,1724461843699,-500.0,0.00013698,2]
[335718766,1724461843709,-605.09,0.00013698,2]
[335718768,1724461843718,-500.0,0.00013698,2]
[335718770,1724461843727,-376.95887794,0.00013698,2]
[335718772,1724461843736,-500.0,0.00013698,2]
[335718774,1724461843746,-1271.92,0.00013698,2]
[335718776,1724461843755,-500.0,0.00013698,2]
[335718795,1724461843926,-500.0,0.00013698,2]
[335718797,1724461843935,-500.0,0.00013698,2]
[335718799,1724461843946,-522.93514949,0.00013698,2]
[335718801,1724461843956,-500.0,0.00013698,2]
[335718803,1724461843965,-687.36,0.00013698,2]
[335718805,1724461843974,-522.89377065,0.00013698,2]
[335718807,1724461843983,-1202.28,0.00013698,2]
[335718809,1724461843992,-554.75,0.00013698,2]
[335718811,1724461844001,-500.0,0.00013698,2]
[335718813,1724461844011,-822.76,0.00013698,2]
[335718815,1724461844020,-500.0,0.00013698,2]
[335718817,1724461844029,-500.0,0.00013698,2]
[335718819,1724461844039,-500.0,0.00013698,2]
[335718821,1724461844048,-12013.63,0.00013698,2]
[335718823,1724461844057,-500.0,0.00013698,2]
[335718825,1724461844066,-500.0,0.00013698,2]
[335718827,1724461844075,-704.63,0.00013698,2]
[335718829,1724461844084,-3640.51,0.00013698,2]
[335718831,1724461844094,-546.03,0.00013698,2]
[335718833,1724461844103,-500.0,0.00013698,2]
[335718835,1724461844113,-557.11,0.00013698,2]
[335718837,1724461844122,-500.0,0.00013698,2]
[335718839,1724461844131,-500.0,0.00013698,2]
[335718841,1724461844140,-500.0,0.00013698,2]
[335718843,1724461844150,-500.0,0.00013698,2]
[335718845,1724461844159,-2600.24,0.00013698,2]
[335718847,1724461844167,-1994.35,0.00013698,2]
[335718849,1724461844176,-862.78,0.00013698,2]
[335718850,1724461844185,-500.0,0.00013698,2]
[335718852,1724461844194,-7293.98,0.00013698,2]
[335718854,1724461844203,-978.57,0.00013698,2]
[335718856,1724461844212,-500.0,0.00013698,2]
[335718858,1724461844222,-500.0,0.00013698,2]
[335718860,1724461844231,-506.08330678,0.00013698,2]
[335718862,1724461844240,-500.0,0.00013698,2]
[335718864,1724461844249,-3011.19,0.00013698,2]
[335718866,1724461844259,-1521.11,0.00013698,2]
[335718868,1724461844268,-4639.7,0.00013698,2]
[335718870,1724461844277,-579.24,0.00013698,2]
[335718872,1724461844287,-500.0,0.00013698,2]
[335718874,1724461844296,-500.0,0.00013698,2]
[335718876,1724461844305,-500.0,0.00013698,2]
[335718878,1724461844314,-10121.82,0.00013698,2]
[335718880,1724461844323,-500.0,0.00013698,2]
[335718882,1724461844332,-3585.43,0.00013698,2]
[335718884,1724461844342,-500.0,0.00013698,2]
[335718886,1724461844351,-500.0,0.00013698,2]
[335718888,1724461844360,-500.0,0.00013698,2]
[335718890,1724461844368,-500.0,0.00013698,2]
[335718892,1724461844378,-500.0,0.00013698,2]
[335718894,1724461844388,-789.79,0.00013698,2]
[335718895,1724461844398,-500.0,0.00013698,2]
[335718897,1724461844407,-500.0,0.00013698,2]
[335718899,1724461844416,-500.0,0.00013698,2]